[Event "ChessKid Cup Div-III 2023"]
[Site "Online"]
[Date "2023.05.24"]
[Round "54.2"]
[White "Navara, David"]
[Black "Lysyj, Igor"]
[Result "1/2-1/2"]
[ECO "A30"]
[WhiteElo "2678"]
[BlackElo "2606"]
[Annotator "TA"]
[PlyCount "219"]
[EventDate "2023.05.21"]
[EventType "k.o."]
[EventCountry "NET"]
[SourceTitle "playchess.com"]
[Source "ChessBase"]
[SourceQuality "1"]
[TimeControl "900+3"]

{[%evp 44,219,29,25,36,28,52,-66,-61,-66,0,0,0,0,0,-28,-25,-84,-9,-17,0,0,0,0,0,-55,-55,-55,-55,-55,-55,-64,-64,-67,-23,-23,-23,-23,-23,-43,-44,-44,-36,-44,-44,-44,-43,-43,-43,-43,0,-43,-43,-43,-43,-43,-43,-43,-43,-43,-43,-56,-43,-55,-12,-55,-55,-55,-55,-55,-55,-55,-55,-56,-56,-56,21,21,14,14,15,0,0,0,8,8,8,8,12,12,12,8,9,8,8,7,12,12,26,7,19,19,19,19,27,27,45,7,8,8,8,8,8,8,8,8,8,8,8,8,8,8,8,8,8,7,7,7,8,8,8,8,8,8,8,8,8,8,8,8,8,8,8,8,8,8,8,8,8,8,8,8,8,8,8,8,8,8,8,8,8,8,8,8,8,8,8,8,8,8,8,8,8,0,28,8,8,8]} 1. b3 {[%emt 0:00:18]} Nf6 {[%emt 0:00:10]} 2. Bb2 {[%emt 0:00:01]} e6 {[%emt 0:00:02]} 3. Nf3 {[%emt 0:00:01]} b6 {[%emt 0:00:08]} 4. g3 {[%emt 0:00:05]} Bb7 {[%emt 0:00:03]} 5. Bg2 {[%emt 0:00:00]} Be7 {[%emt 0:00:08]} 6. c4 {[%emt 0:00:02]} c5 {[%emt 0:00:14]} 7. O-O {[%emt 0:00:02]} O-O {[%emt 0:00:01]} 8. d4 {[%emt 0:00:01]} cxd4 {[%emt 0:00:03]} 9. Qxd4 {[%emt 0:00:00]} d6 {[%emt 0:00:09]} 10. Nc3 {[%emt 0:00:12]} a6 {[%emt 0:00:14]} 11. e4 {[%emt 0:01:28]} Nbd7 {[%emt 0:00:05]} 12. Qe3 {[%emt 0:00:10]} Qc7 {[%emt 0:00:04]} 13. Nd4 {[%emt 0:00:06]} Rfe8 {[%emt 0:00:03]} 14. Rac1 {[%emt 0:00:03]} Bf8 {[%emt 0:00:02]} 15. h3 {[%emt 0:00:08]} Rac8 {[%emt 0:00:04]} 16. f4 {[%emt 0:00:08]} g6 {[%emt 0:00:47]} 17. Kh2 {[%emt 0:00:15]} Bg7 {[%emt 0:01:16]} 18. Rce1 {[%emt 0:00:57]} e5 {[%emt 0:00:18]} 19. fxe5 {[%emt 0:01:04]} Nxe5 {[%emt 0:00:03]} 20. Qd2 {[%emt 0:00:01]} Nfd7 {[%emt 0:00:28]} 21. Nd5 {[%emt 0:00:12]} Qd8 {[%emt 0:00:12]} 22. Rd1 {[%emt 0:00:39]} Nc5 {[%emt 0:00:09]} 23. Ba1 {[%emt 0:00:16]} Ned7 {[%emt 0:01:05]} 24. Qf4 {[%emt 0:00:36]} Ne5 {[%emt 0:00:57]} 25. Nf6+ {[%emt 0:00:58]} (25. Ne2 $14) 25... Bxf6 $15 {[%emt 0:00:10]} 26. Qxf6 {[%emt 0:00:00]} Qxf6 {[%emt 0:00:14]} ({Of course not} 26... Nxe4 27. Qf4 f5 28. Nxf5 gxf5 29. Qxf5 $11) (26... Bxe4 $15 27. g4 Qxf6 28. Rxf6 Rcd8) 27. Rxf6 $11 {[%emt 0:00:00]} Nxe4 {[%emt 0:00:11]} 28. Bxe4 {[%emt 0:00:10]} Bxe4 {[%emt 0:00:04]} 29. Rxd6 {[%emt 0:00:01]} b5 {[%emt 0:00:04]} 30. cxb5 {[%emt 0:00:18] [#]} (30. g4 $11) 30... axb5 {[%emt 0:00:02]} (30... Nf3+ $1 $17 31. Nxf3 Bxf3) 31. g4 $11 {[%emt 0:00:08]} Ra8 {[%emt 0:01:07]} 32. Rd2 {[%emt 0:00:11]} Bb1 {[%emt 0:00:07]} 33. Kg3 {[%emt 0:00:08]} Bxa2 {[%emt 0:01:25]} 34. Nxb5 {[%emt 0:03:16]} ({White should try} 34. Re2 $11 Bb1 35. Bc3) 34... Bxb3 $15 {[%emt 0:00:03]} 35. Nc7 {[%emt 0:00:01]} Rxa1 {[%emt 0:00:52]} 36. Nxe8 {[%emt 0:00:02]} Nc4 {[%emt 0:00:01]} 37. g5 {[%emt 0:00:17]} Nxd6 {[%emt 0:00:23]} 38. Rxd6 {[%emt 0:00:02]} Ra8 {[%emt 0:00:26]} (38... h6 $5 39. Nf6+ Kg7 40. Ne8+ Kh8 $17) 39. Nf6+ {[%emt 0:00:02]} Kg7 {[%emt 0:00:02]} 40. h4 {[%emt 0:00:13]} Be6 {[%emt 0:00:15]} 41. Rd4 {[%emt 0:00:57]} h6 {[%emt 0:00:06]} 42. Kf4 {[%emt 0:00:37]} Rb8 {[%emt 0:00:20]} 43. Ng4 {[%emt 0:00:38]} hxg5+ {[%emt 0:00:23]} 44. hxg5 {[%emt 0:00:00]} Ra8 {[%emt 0:00:29]} 45. Rb4 {[%emt 0:00:20]} Rh8 {[%emt 0:00:12]} 46. Nh6 $1 {[%emt 0:00:40]} Ra8 {[%emt 0:00:04]} 47. Ng4 {[%emt 0:00:02]} Ra1 {[%emt 0:00:12]} 48. Ne3 {[%emt 0:00:07]} Rh1 {[%emt 0:00:15]} 49. Rb5 {[%emt 0:00:17]} Kf8 {[%emt 0:00:15]} 50. Rb8+ {[%emt 0:00:14]} Ke7 {[%emt 0:00:09]} 51. Rb5 {[%emt 0:00:06]} Kd6 {[%emt 0:00:04]} 52. Ra5 {[%emt 0:00:01]} Kc6 {[%emt 0:00:21]} 53. Nc2 {[%emt 0:00:21]} Kb6 {[%emt 0:01:12]} 54. Re5 {[%emt 0:00:02]} (54. Ra1 $5 {[%cal Ra1h1]} Rh4+ 55. Ke5 $17) 54... Rh4+ {[%emt 0:00:03]} 55. Ke3 {[%emt 0:00:07]} Kc6 {[%emt 0:00:28]} 56. Nd4+ {[%emt 0:00:01]} Kd6 {[%emt 0:00:01]} 57. Ra5 $1 {[%emt 0:00:01]} Bd5 {[%emt 0:00:04]} 58. Ra6+ {[%emt 0:00:18]} Ke7 {[%emt 0:00:06]} 59. Ra5 $1 {[%emt 0:00:08]} Re4+ {[%emt 0:00:11]} ({Better is} 59... Bh1 $15) 60. Kd3 $11 {[%emt 0:00:01]} Kd6 {[%emt 0:00:02]} 61. Nb5+ $1 {[%emt 0:00:09]} Kc6 {[%emt 0:00:22]} 62. Nd4+ {[%emt 0:00:18]} (62. Nc3 $5 Re5 $8 63. Kd4 Rxg5 64. Nxd5 Rg4+ 65. Kd3 $14) 62... Kd6 {[%emt 0:00:02]} 63. Nb5+ $1 {[%emt 0:00:00]} Kc6 {[%emt 0:00:00]} 64. Nc3 {[%emt 0:00:03]} Re5 {[%emt 0:00:07]} 65. Kd4 {[%emt 0:00:02]} Rxg5 {[%emt 0:00:03]} 66. Nxd5 {[%emt 0:00:04]} Rg4+ {[%emt 0:00:01]} 67. Ke3 {[%emt 0:00:05]} f5 {[%emt 0:00:04]} 68. Ne7+ {[%emt 0:00:01]} Kd6 {[%emt 0:00:03]} 69. Nxg6 {[%emt 0:00:01]} Re4+ {[%emt 0:00:10]} 70. Kf3 {[%emt 0:00:02]} Re8 {[%emt 0:00:02]} 71. Kf4 {[%emt 0:00:02]} Kc6 {[%emt 0:00:02]} 72. Ne5+ {[%emt 0:00:04]} Kb6 {[%emt 0:00:02]} 73. Ra1 {[%emt 0:00:04]} Rh8 {[%emt 0:00:02]} 74. Rc1 {[%emt 0:00:05]} Kb5 {[%emt 0:00:02]} 75. Kxf5 {[%emt 0:00:01]} Kb4 {[%emt 0:00:01]} 76. Ke4 {[%emt 0:00:00]} Rh4+ {[%emt 0:00:02]} 77. Kd5 {[%emt 0:00:06]} Rh5 {[%emt 0:00:02]} 78. Rc4+ {[%emt 0:00:03]} Kb3 {[%emt 0:00:02]} 79. Rf4 {[%emt 0:00:04]} Kc3 {[%emt 0:00:03]} 80. Rg4 {[%emt 0:00:06]} Kb3 {[%emt 0:00:01]} 81. Kd4 {[%emt 0:00:02]} Kb4 {[%emt 0:00:05]} 82. Rg8 {[%emt 0:00:03]} Rh4+ {[%emt 0:00:03]} 83. Ng4 {[%emt 0:00:00]} Kb5 {[%emt 0:00:02]} 84. Rg6 {[%emt 0:00:01]} Rh1 {[%emt 0:00:04]} 85. Nf2 {[%emt 0:00:05]} Rh4+ {[%emt 0:00:07]} 86. Ne4 {[%emt 0:00:02]} Rh5 {[%emt 0:00:03]} 87. Nc3+ {[%emt 0:00:02]} Ka5 {[%emt 0:00:06]} 88. Re6 {[%emt 0:00:01]} Rg5 {[%emt 0:00:05]} 89. Nd5 {[%emt 0:00:06]} Rh5 {[%emt 0:00:06]} 90. Kc5 {[%emt 0:00:06]} Ka4 {[%emt 0:00:03]} 91. Re3 {[%emt 0:00:00]} Rg5 {[%emt 0:00:06]} 92. Rh3 {[%emt 0:00:01]} Rf5 {[%emt 0:00:03]} 93. Kc4 {[%emt 0:00:01]} Rg5 {[%emt 0:00:05]} 94. Rf3 {[%emt 0:00:19]} Rg4+ {[%emt 0:00:05]} 95. Kc5 {[%emt 0:00:00]} Rg5 {[%emt 0:00:01]} 96. Re3 {[%emt 0:00:05]} Rh5 {[%emt 0:00:02]} 97. Rg3 {[%emt 0:00:01]} Rf5 {[%emt 0:00:02]} 98. Kc4 {[%emt 0:00:01]} Rh5 {[%emt 0:00:05]} 99. Nf6 {[%emt 0:00:04]} Rh4+ {[%emt 0:00:03]} 100. Kc5 {[%emt 0:00:01]} Rh8 {[%emt 0:00:17]} 101. Ne4 {[%emt 0:00:10]} Rh5+ {[%emt 0:00:02]} 102. Kc4 {[%emt 0:00:02]} Rh4 {[%emt 0:00:02]} 103. Re3 {[%emt 0:00:00]} Rg4 {[%emt 0:00:01]} 104. Kc5 {[%emt 0:00:01]} Rh4 {[%emt 0:00:03]} 105. Nf6 {[%emt 0:00:04]} Rh8 {[%emt 0:00:03]} 106. Nd7 {[%emt 0:00:07]} Rh5+ {[%emt 0:00:02]} 107. Kc4 {[%emt 0:00:02]} Rh4+ {[%emt 0:00:01]} 108. Kc5 {[%emt 0:00:00]} Rh5+ {[%emt 0:00:02]} 109. Re5 {[%emt 0:00:01]} Rxe5+ {[%emt 0:00:01]} 110. Nxe5 {[%emt 0:00:00]} 1/2-1/2

[Event "ChessKid Cup Div-III 2023"]
[Site "Online"]
[Date "2023.05.24"]
[Round "54.2"]
[White "Donchenko, Alexander"]
[Black "Vallejo Pons, Francisco"]
[Result "0-1"]
[ECO "C01"]
[WhiteElo "2669"]
[BlackElo "2712"]
[Annotator "TA"]
[PlyCount "108"]
[EventDate "2023.05.21"]
[EventType "k.o."]
[EventCountry "NET"]
[SourceTitle "playchess.com"]
[Source "ChessBase"]
[SourceQuality "1"]
[TimeControl "900+3"]

{[%evp 9,108,18,24,18,29,25,21,34,31,28,39,30,36,15,14,14,0,0,23,-29,-29,-47,-59,-54,-50,-50,-3,0,0,0,0,0,0,0,0,-27,-11,-56,-58,-70,-94,-77,-81,-289,-303,-281,-276,-1093,-1066,-29989,-29990,-29990,-29987,-29986,0,-29990,-547,-533,-521,-517,-510,-473,-479,-1048,-1013,-12828,-12828,-6754,-7266,-12833,-12833,-12831,-12833,-12837,-12837,-12838,-12838,-12834,-12829,-12840,-12838,-12839,-12838,-12840,-12839,-12840,-12839,-12840,-12840,-12841,-12840,-12841,-12841,-27999,-27999,-27999,-27999,-27999,-27999,-27999,-27999]} 1. d4 {[%emt 0:00:06]} e6 {[%emt 0:00:04]} 2. c4 {[%emt 0:00:03]} b6 {[%emt 0:00:01]} 3. e4 {[%emt 0:00:06]} Bb4+ {[%emt 0:00:03]} 4. Bd2 {[%emt 0:00:01]} Bxd2+ {[%emt 0:00:03]} 5. Nxd2 {[%emt 0:00:01]} d6 {[%emt 0:00:07]} 6. g3 {[%emt 0:00:11] [#] C01: French: Exchange Variation.} Nc6 $146 {[%emt 0:01:12]} ({Predecessor:} 6... Ne7 7. Bg2 e5 8. Ne2 h5 9. h4 Ng6 10. O-O Nc6 11. d5 Nce7 12. b4 a5 {½-½ Rustemov,A (2525)-Meier,G (2609) Chess.com Rapid Wk25 Swiss 2022 (2)}) 7. Ne2 {[%emt 0:00:11]} e5 {[%emt 0:01:25]} 8. d5 {[%emt 0:00:12] The position is equal.} Nce7 {[%emt 0:00:03]} 9. Bg2 {[%emt 0:00:17]} Nh6 {[%emt 0:01:22]} 10. O-O {[%emt 0:00:15]} O-O {[%emt 0:00:21]} 11. b4 {[%emt 0:01:05]} a5 {[%emt 0:00:21]} 12. a3 {[%emt 0:00:38]} f5 {[%emt 0:00:04]} 13. Qb3 {[%emt 0:01:26]} Ng6 {[%emt 0:01:06]} 14. Rac1 {[%emt 0:01:11]} (14. exf5 $142 Bxf5 15. Ne4) 14... f4 $11 {[%emt 0:00:39]} 15. Rc2 {[%emt 0:01:38]} Bd7 {[%emt 0:01:10]} 16. Qd3 {[%emt 0:01:00]} axb4 {[%emt 0:00:36]} 17. axb4 {[%emt 0:00:02]} Ra4 {[%emt 0:00:32]} (17... Nf7 $15) 18. c5 {[%emt 0:00:55]} Rxb4 {[%emt 0:01:12] aiming for ...Bb5.} 19. cxd6 {[%emt 0:00:59]} Bb5 {[%emt 0:00:02]} 20. Qc3 {[%emt 0:01:19]} (20. dxc7 $2 Bxd3 21. cxd8=N Rxd8 $19) 20... Qxd6 {[%emt 0:00:08]} 21. Re1 {[%emt 0:00:09]} Ng4 $36 {[%emt 0:00:57][%cal Od6f6][%mdl 2048] White is under pressure.} 22. Bf3 {[%emt 0:01:13]} (22. h3 $5 {[%cal Rh3g4]} Nf6 23. Qxc7 Qxc7 24. Rxc7 $11) 22... h5 {[%emt 0:01:30]} 23. h3 {[%emt 0:00:10] [#]} (23. Rec1 $5 {[%cal Rc3a3]}) 23... fxg3 $1 {[%emt 0:00:43]} 24. fxg3 {[%emt 0:00:12]} (24. Nxg3 Nf6) 24... Nf6 {[%emt 0:01:52] Black is more active. White is now going downhill.} (24... Bxe2 25. Rxe2 Nf6 26. h4 $11 (26. Qxc7 Qxc7 27. Rxc7 h4 $11)) 25. h4 {[%emt 0:00:16]} Ng4 {[%emt 0:00:16]} 26. Nc1 $2 {[%emt 0:01:17]} (26. Rf1 $17) 26... Rd4 $19 {[%emt 0:00:14] ...Qf6 would be deadly.} 27. Bxg4 {[%emt 0:01:21]} hxg4 {[%emt 0:00:01]} 28. Ndb3 $2 {[%emt 0:00:00]} (28. Qe3) 28... Rf3 {[%emt 0:00:10][%cal Bf8f3,Bf3g3,Bg3h3][%mdl 32]} 29. Qxc7 {[%emt 0:00:12]} Rxg3+ {[%emt 0:00:01]} 30. Kh1 {[%emt 0:00:02]} Rh3+ {[%emt 0:00:05]} 31. Kg1 {[%emt 0:00:02]} Rg3+ {[%emt 0:00:05]} 32. Kh1 $1 {[%emt 0:00:00]} Qxc7 {[%emt 0:00:08]} (32... Rxe4 $142 33. Rf1 Qxd5 34. Qd6 Qxd6 35. Kh2 Qe7 36. Kxg3 Qxh4+ 37. Kg2 Bxf1+ 38. Kg1 Qg3+ 39. Kh1 Bg2+ {[%mdl 64] Back Rank} 40. Rxg2 Re1+ 41. Rg1 Rxg1#) 33. Rxc7 {[%emt 0:00:00]} Rh3+ {[%emt 0:00:04]} 34. Kg1 {[%emt 0:00:01]} Rb4 {[%emt 0:00:02][%cal Og6h4]} 35. d6 {[%emt 0:00:06]} Nxh4 {[%emt 0:00:01] White must now prevent ...Nf3+.} ({And not} 35... Rbxb3 36. Nxb3 Rg3+ 37. Kh1 $17) 36. d7 {[%emt 0:00:03] [#]} (36. Rd1 $142 Rxe4 37. d7 Bxd7 38. Rcxd7) 36... Bxd7 $1 {[%emt 0:00:02][%mdl 512] ...Nf3+ is the strong threat.} 37. Rxd7 {[%emt 0:00:02]} (37. Nd2 Rd4) 37... Nf3+ {[%emt 0:00:03]} 38. Kf2 {[%emt 0:00:01]} Nxe1 {[%emt 0:00:04]} 39. Kxe1 {[%emt 0:00:05]} Rhxb3 {[%emt 0:00:04]} 40. Nxb3 {[%emt 0:00:01]} Rxb3 {[%emt 0:00:00][%mdl 4096] Endgame KR-KR} 41. Rd5 {[%emt 0:00:01]} Re3+ {[%emt 0:00:01]} 42. Kf2 {[%emt 0:00:01]} Rxe4 {[%emt 0:00:01]} 43. Kg3 {[%emt 0:00:00]} Rb4 {[%emt 0:00:09]} 44. Rxe5 {[%emt 0:00:01]} Kf7 {[%emt 0:00:01]} 45. Re1 {[%emt 0:00:08]} b5 {[%emt 0:00:03][%cal Bb6b5,Bb5b4,Bb4b3,Bb3b2][%mdl 32]} 46. Re5 {[%emt 0:00:01]} Kf6 {[%emt 0:00:01]} 47. Re8 {[%emt 0:00:01]} Rc4 {[%emt 0:00:02]} 48. Rb8 {[%emt 0:00:02]} b4 {[%emt 0:00:01]} 49. Rb7 {[%emt 0:00:05]} g6 {[%emt 0:00:04]} 50. Rb6+ {[%emt 0:00:01]} Ke5 {[%emt 0:00:03]} 51. Rxg6 {[%emt 0:00:03]} Kd4 {[%emt 0:00:08] Black mates.} 52. Kxg4 {[%emt 0:00:10]} b3 {[%emt 0:00:03]} 53. Kf3 {[%emt 0:00:03]} Kc3 {[%emt 0:00:02]} 54. Ke2 {[%emt 0:00:04]} b2 {[%emt 0:00:04] Weighted Error Value: White=0.91/Black=0.30} 0-1

[Event "ChessKid Cup Div-III 2023"]
[Site "Online"]
[Date "2023.05.24"]
[Round "54.2"]
[White "Kamsky, Gata"]
[Black "Antipov, Mikhail Al."]
[Result "1/2-1/2"]
[ECO "D03"]
[WhiteElo "2665"]
[BlackElo "2588"]
[Annotator "TA"]
[PlyCount "132"]
[EventDate "2023.05.21"]
[EventType "k.o."]
[EventCountry "NET"]
[SourceTitle "playchess.com"]
[Source "ChessBase"]
[SourceQuality "1"]
[TimeControl "900+3"]

{[%evp 17,132,8,13,0,21,5,50,47,39,45,46,50,45,41,40,23,22,12,26,0,0,0,-3,-35,-29,-37,-10,-29,0,0,18,15,27,29,46,35,46,18,60,22,10,-8,-8,-2,-2,-2,-2,-2,0,-4,-1,-14,-14,-16,-17,-25,-13,-37,0,0,0,-14,0,0,0,0,0,0,0,-14,0,0,0,0,6,0,0,0,0,0,0,0,0,0,27,0,0,0,0,0,8,8,9,14,103,104,545,514,502,447,925,925,591,584,5616,5089,5050,5057,4134,2011,1073,0,1356,0,1116,0,572]} 1. d4 {[%emt 0:00:03]} Nf6 {[%emt 0:00:05]} 2. Nf3 {[%emt 0:00:03]} g6 {[%emt 0:00:14]} 3. Bg5 {[%emt 0:00:10]} Bg7 {[%emt 0:00:01]} 4. c3 {[%emt 0:00:02]} O-O {[%emt 0:00:19]} 5. Nbd2 {[%emt 0:00:03]} d5 {[%emt 0:00:07]} 6. e3 {[%emt 0:00:03]} b6 {[%emt 0:00:17]} 7. Be2 {[%emt 0:00:04]} Bb7 {[%emt 0:00:01]} 8. O-O {[%emt 0:00:03]} Nbd7 {[%emt 0:00:08]} 9. a4 {[%emt 0:00:13]} a5 {[%emt 0:00:07]} 10. Bh4 {[%emt 0:00:57] D03: 1 d4 d5 2 Nf3 Nf6 3 Bg5, including Torre Attack with early ...d5.} h6 {[%emt 0:01:17] [#]} 11. Ne5 $146 {[%emt 0:00:09]} ({Predecessor:} 11. h3 Re8 12. Bg3 Ne4 13. Nxe4 dxe4 14. Nd2 e5 15. Qb1 exd4 16. cxd4 Nf6 17. Qc2 {1-0 Zelbova,L (1491)-Vilimek,V (1637) EU Union-ch U12 2019 (7)}) 11... Nxe5 {[%emt 0:00:23]} (11... Ne8 $5 {[%cal Rd7e5]}) 12. dxe5 {[%emt 0:00:03] White is slightly better.} Nd7 {[%emt 0:00:01][%cal Bf6d7,Bd7c5,Bc5e4][%mdl 32]} 13. f4 {[%emt 0:00:03]} Qe8 {[%emt 0:00:04]} 14. Nb3 {[%emt 0:01:49]} e6 {[%emt 0:00:35]} 15. Nd4 {[%emt 0:00:43]} Nc5 {[%emt 0:01:02]} 16. Bb5 {[%emt 0:00:26]} c6 {[%emt 0:00:05]} 17. Be2 {[%emt 0:00:04]} Ne4 {[%emt 0:00:33]} 18. Bf3 {[%emt 0:00:57]} Ba6 {[%emt 0:00:48]} 19. Re1 {[%emt 0:00:11]} c5 {[%emt 0:00:47]} 20. Nb3 {[%emt 0:00:47]} g5 {[%emt 0:02:07]} 21. Bg3 {[%emt 0:05:09]} Qe7 {[%emt 0:02:03]} 22. Nd2 {[%emt 0:00:12]} Bd3 {[%emt 0:00:30]} 23. Be2 {[%emt 0:00:04]} Bxe2 {[%emt 0:00:06]} 24. Qxe2 {[%emt 0:00:07]} Nxd2 {[%emt 0:02:36]} 25. Qxd2 {[%emt 0:00:02]} f5 {[%emt 0:00:00]} 26. exf6 $1 {[%emt 0:00:03]} Qxf6 {[%emt 0:00:01]} 27. Rad1 {[%emt 0:00:09]} Rf7 {[%emt 0:00:28]} 28. fxg5 {[%emt 0:00:23]} Qxg5 {[%emt 0:00:03]} ({Don't take} 28... hxg5 29. Rf1 Qg6 30. Rxf7 Kxf7 31. Qe2 $16) 29. e4 {[%emt 0:00:03]} (29. Qe2 {is more complex.} h5 30. e4 h4 31. Bf2) 29... Qxd2 {[%emt 0:00:40]} 30. Rxd2 {[%emt 0:00:03]} d4 {[%emt 0:00:00]} 31. e5 {[%emt 0:00:04]} Rd8 {[%emt 0:00:01]} 32. cxd4 {[%emt 0:00:40]} cxd4 {[%emt 0:00:14]} 33. Rd3 {[%emt 0:00:12]} Bf8 {[%emt 0:00:52]} 34. Bh4 {[%emt 0:00:54]} Rd5 {[%emt 0:00:01]} 35. Bf2 {[%emt 0:00:30]} Bc5 {[%emt 0:00:03]} 36. Re4 {[%emt 0:00:09]} Rf5 {[%emt 0:00:06]} 37. Bg3 {[%emt 0:00:18]} Kf7 {[%emt 0:00:02]} 38. Bf4 {[%emt 0:00:04]} h5 {[%emt 0:00:02][%cal Ob6b5]} 39. g3 {[%emt 0:00:01]} Kg6 {[%emt 0:00:02]} 40. Kg2 {[%emt 0:00:01]} Rf7 {[%emt 0:00:01]} 41. h3 {[%emt 0:00:06]} b5 {[%emt 0:00:04]} 42. axb5 {[%emt 0:00:10]} Rb7 {[%emt 0:00:01]} 43. Re2 {[%emt 0:00:03]} Rxb5 {[%emt 0:00:01]} 44. Kf3 {[%emt 0:00:04]} a4 {[%emt 0:00:10]} 45. Ke4 {[%emt 0:00:02]} Rd7 {[%emt 0:00:05]} 46. g4 {[%emt 0:00:04]} hxg4 {[%emt 0:00:01]} 47. Rg2 {[%emt 0:00:02]} Rh7 {[%emt 0:00:04]} 48. Rdg3 {[%emt 0:00:04]} Kf7 {[%emt 0:00:03]} 49. Rxg4 {[%emt 0:00:04]} Rb3 {[%emt 0:00:03]} (49... Rxh3 $2 50. Rg7+ Ke8 51. R2g6 $18) 50. h4 {[%emt 0:00:05][%cal Oh4h5]} Be7 {[%emt 0:00:04]} 51. Bg5 {[%emt 0:00:07]} Bxg5 {[%emt 0:00:02]} 52. hxg5 $11 {[%emt 0:00:01][%mdl 4096] [#] Endgame White wants to mate with g6+. KRR-KRR} Kg6 {[%emt 0:00:03] ...d3 would be deadly.} 53. Rf4 {[%emt 0:00:11]} d3 {[%emt 0:00:05] aiming for ...Rb4+.} 54. Rf6+ {[%emt 0:00:02]} Kg7 {[%emt 0:00:00]} 55. Rxe6 {[%emt 0:00:04] Black must now prevent Re7+.} Rh4+ {[%emt 0:00:04]} (55... Rh1 $1 $11 {keeps the balance.}) 56. Kf5 $16 {[%emt 0:00:13] Hoping for Rg6+.} d2 $2 {[%emt 0:00:02][%mdl 8192]} 57. Re7+ $18 {[%emt 0:00:03]} (57. Rxd2 $2 Rf3#) 57... Kf8 {[%emt 0:00:01]} 58. Rd7 {[%emt 0:00:00]} Rxb2 {[%emt 0:00:09]} (58... Rf3+ $142 59. Ke6 Rb4 60. Rgxd2 Rb6+ 61. R7d6 Rb5) 59. Rgxd2 {[%emt 0:00:02]} ({Not} 59. Rdxd2 Rxd2 60. Rxd2 Rh1 $16) 59... Rxd2 {[%emt 0:00:01]} 60. Rxd2 {[%emt 0:00:01] KR-KR} a3 {[%emt 0:00:01] [#]} 61. Rd8+ $1 {[%emt 0:00:01]} Ke7 {[%emt 0:00:02]} 62. Ra8 {[%emt 0:00:00]} Rh3 {[%emt 0:00:00]} 63. Ra7+ {[%emt 0:00:02]} (63. Kg4 $142 Re3 64. g6) 63... Kf8 {[%emt 0:00:02]} 64. Ra8+ {[%emt 0:00:03]} Ke7 {[%emt 0:00:01]} 65. Ra7+ {[%emt 0:00:01]} Kf8 {[%emt 0:00:00]} 66. Ra8+ {[%emt 0:00:00]} Ke7 $1 {[%emt 0:00:00][%mdl 32768] Weighted Error Value: White=0.07 (flawless) /Black=0.26 (precise) . An unexpected result.} 1/2-1/2